fUST/lending_fUST_20250616
["ID","MTS","AMOUNT","RATE_DAILY","PERIOD"]
[366151329,1750089042465,-460.0,0.00019452,4]
[366151332,1750089042476,-460.0,0.00019452,4]
[366151334,1750089042486,-460.0,0.00019452,4]
[366151336,1750089042496,-460.0,0.00019452,4]
[366151338,1750089042506,-439.41965538,0.00019452,4]
[366151340,1750089042516,-460.0,0.00019452,4]
[366151342,1750089042526,-460.0,0.00019452,4]
[366151344,1750089042535,-460.0,0.00019452,4]
[366151346,1750089042545,-460.0,0.00019452,4]
[366151348,1750089042555,-535.79755839,0.00019452,4]
[366151350,1750089042565,-460.0,0.00019452,4]
[366151352,1750089042576,-460.0,0.00019452,4]
[366151354,1750089042587,-460.0,0.00019452,4]
[366151356,1750089042597,-406.30704402,0.00019452,4]
[366151358,1750089042607,-460.0,0.00019452,4]
[366151360,1750089042617,-460.0,0.00019452,4]
[366151362,1750089042627,-460.0,0.00019452,4]
[366151363,1750089042637,-460.0,0.00019452,4]
[366151365,1750089042649,-460.0,0.00019452,4]
[366151378,1750089042766,-460.0,0.00019452,4]
[366151380,1750089042792,-460.0,0.00019452,4]
[366151382,1750089042805,-460.0,0.00019452,4]
[366151384,1750089042816,-1881.63,0.00019452,4]
[366151387,1750089042828,-460.0,0.00019452,4]
[366151389,1750089042839,-453.42910048,0.00019452,4]
[366151390,1750089042850,-460.0,0.00019452,4]
[366151392,1750089042860,-460.0,0.00019452,4]
[366151395,1750089042870,-460.0,0.00019452,4]
[366151396,1750089042881,-530.63,0.00019452,4]
[366151398,1750089042892,-460.0,0.00019452,4]
[366151400,1750089042902,-460.0,0.00019452,4]
[366151402,1750089042912,-460.0,0.00019452,4]
[366151404,1750089042923,-460.0,0.00019452,4]
[366151406,1750089042935,-370.0,0.00019452,4]
[366151408,1750089042945,-525.3,0.00019452,4]
[366151410,1750089042955,-2532.74,0.00019452,4]
[366151412,1750089042965,-1369.72,0.00019452,4]
[366151414,1750089042975,-460.0,0.00019452,4]
[366151416,1750089042985,-460.0,0.00019452,4]
[366151418,1750089042995,-300.0,0.00019452,4]
[366151420,1750089043006,-460.0,0.00019452,4]
[366151422,1750089043016,-1914.59,0.00019452,4]
[366151424,1750089043026,-460.0,0.00019452,4]
[366151426,1750089043036,-460.0,0.00019452,4]
[366151428,1750089043047,-903.02,0.00019452,4]
[366151430,1750089043058,-460.0,0.00019452,4]
[366151432,1750089043068,-460.0,0.00019452,4]
[366151435,1750089043079,-460.0,0.00019452,4]
[366151437,1750089043089,-460.0,0.00019452,4]
[366151439,1750089043099,-531.98,0.00019452,4]
[366151440,1750089043109,-901.41,0.00019452,4]
[366151442,1750089043119,-795.13,0.00019452,4]
[366151444,1750089043130,-400.0,0.00019452,4]
[366151446,1750089043142,-460.0,0.00019452,4]
[366151448,1750089043152,-829.83,0.00019452,4]
[366151450,1750089043162,-460.0,0.00019452,4]
[366151452,1750089043172,-445.11835624,0.00019452,4]
[366151454,1750089043184,-460.0,0.00019452,4]
[366151456,1750089043194,-369.63537497,0.00019452,4]
[366151458,1750089043204,-460.0,0.00019452,4]
[366151461,1750089043215,-460.0,0.00019452,4]
[366151463,1750089043226,-460.0,0.00019452,4]
[366151465,1750089043236,-460.0,0.00019452,4]
[366151467,1750089043246,-341.22490982,0.00019452,4]
[366151469,1750089043256,-460.0,0.00019452,4]
[366151472,1750089043266,-460.0,0.00019452,4]
[366151475,1750089043276,-460.0,0.00019452,4]
[366151477,1750089043286,-460.0,0.00019452,4]
[366151479,1750089043296,-1499.04,0.00019452,4]
[366151481,1750089043305,-460.0,0.00019452,4]
[366151483,1750089043316,-597.29,0.00019452,4]
[366151485,1750089043326,-460.0,0.00019452,4]
[366151487,1750089043336,-925.29,0.00019452,4]
[366151489,1750089043347,-559.60332474,0.00019452,4]
[366151491,1750089043357,-460.0,0.00019452,4]
[366151493,1750089043367,-460.0,0.00019452,4]
[366151495,1750089043376,-460.0,0.00019452,4]
[366151497,1750089043387,-520.15,0.00019452,4]
[366151499,1750089043396,-460.0,0.00019452,4]
[366151501,1750089043406,-460.0,0.00019452,4]
[366151503,1750089043416,-460.0,0.00019452,4]
[366151505,1750089043426,-460.0,0.00019452,4]
[366151507,1750089043435,-460.0,0.00019452,4]
[366151509,1750089043446,-460.0,0.00019452,4]
[366151511,1750089043455,-460.0,0.00019452,4]
[366151513,1750089043465,-460.0,0.00019452,4]
[366151515,1750089043476,-460.0,0.00019452,4]
[366151517,1750089043486,-460.0,0.00019452,4]
[366151519,1750089043496,-460.0,0.00019452,4]
[366151521,1750089043506,-460.0,0.00019452,4]
[366151523,1750089043516,-460.0,0.00019452,4]
[366151525,1750089043527,-460.0,0.00019452,4]
[366151527,1750089043536,-3579.55,0.00019452,4]
[366151529,1750089043548,-387.23080679,0.00019452,4]
[366151531,1750089043558,-500.0,0.00019452,4]
[366151533,1750089043568,-460.0,0.00019452,4]
[366151535,1750089043579,-1086.54,0.00019452,4]
[366151537,1750089043589,-460.0,0.00019452,4]
[366151539,1750089043599,-460.0,0.00019452,4]
[366151541,1750089043609,-460.0,0.00019452,4]
[366151543,1750089043619,-1778.22,0.00019452,4]
[366151545,1750089043630,-460.0,0.00019452,4]
[366151547,1750089043640,-460.0,0.00019452,4]
[366151549,1750089043651,-460.0,0.00019452,4]
[366151551,1750089043660,-460.0,0.00019452,4]
[366151553,1750089043670,-1733.7,0.00019452,4]
[366151555,1750089043681,-460.0,0.00019452,4]
[366151557,1750089043691,-2444.59,0.00019452,4]
[366151559,1750089043701,-460.0,0.00019452,4]
[366151561,1750089043711,-400.70560515,0.00019452,4]
[366151563,1750089043722,-460.0,0.00019452,4]
[366151565,1750089043734,-460.0,0.00019452,4]
[366151566,1750089043745,-460.0,0.00019452,4]
[366151567,1750089043755,-460.0,0.00019452,4]
[366151568,1750089043767,-460.0,0.00019452,4]
[366151569,1750089043778,-500.0,0.00019474,2]
[366151570,1750089043789,-500.0,0.00019479,2]
[366151571,1750089043800,-1529.47743691,0.00019489,2]
[366151572,1750089043810,-500.0,0.00019502,2]
[366151573,1750089043820,-500.0,0.00019507,2]
[366151574,1750089043830,-500.0,0.00019529,2]
[366151576,1750089043840,-500.0,0.00019534,2]
[366151578,1750089043850,-500.0,0.00019557,2]
[366151580,1750089043861,-500.0,0.00019562,2]
[366151582,1750089043871,-500.0,0.00019584,2]
[366151584,1750089043881,-500.0,0.00019589,2]
[366151586,1750089043891,-500.0,0.00019611,2]
[366151588,1750089043901,-431.15092804,0.00019616,2]
[366151590,1750089043912,-500.0,0.00019639,2]
[366151592,1750089043922,-1531.97,0.00019647,2]
[366151594,1750089043933,-500.0,0.00019666,2]
[366151596,1750089043943,-245.3482826,0.00019694,2]
[366151598,1750089043953,-1529.47743691,0.00019695,2]
[366151601,1750089043963,-501.0127259,0.00019721,2]
[366151603,1750089043972,-500.0,0.00019721,2]
[366151604,1750089043983,-1000.0,0.00019721,2]
[366151606,1750089043993,-373.16237222,0.00019721,2]
[366151608,1750089044002,-1000.0,0.00019721,2]
[366151611,1750089044012,-1000.0,0.00019721,2]
[366151613,1750089044022,-460.0,0.00019726,4]
[366151615,1750089044032,-444.97,0.00019726,4]
[366151617,1750089044042,-460.0,0.00019726,4]
[366151619,1750089044052,-460.0,0.00019726,4]
[366151621,1750089044062,-460.0,0.00019726,4]
[366151623,1750089044072,-460.0,0.00019726,4]
[366151625,1750089044082,-460.0,0.00019726,4]
[366151627,1750089044092,-340.0,0.00019726,4]
[366151629,1750089044102,-460.0,0.00019726,4]
[366151631,1750089044111,-460.0,0.00019726,4]
[366151633,1750089044121,-460.0,0.00019726,4]
[366151635,1750089044131,-460.0,0.00019726,4]
[366151637,1750089044141,-460.0,0.00019726,4]
[366151639,1750089044152,-396.26960291,0.00019726,4]
[366151641,1750089044162,-460.0,0.00019726,4]
[366151643,1750089044172,-290.33767294,0.00019726,4]
[366151645,1750089044183,-460.0,0.00019726,4]
[366151647,1750089044192,-460.0,0.00019726,4]
[366151649,1750089044202,-460.0,0.00019726,4]
[366151651,1750089044211,-460.0,0.00019726,4]
[366151653,1750089044222,-460.0,0.00019726,4]
[366151655,1750089044231,-460.0,0.00019726,4]
[366151657,1750089044242,-460.0,0.00019726,4]
[366151659,1750089044251,-280.22298708,0.00019726,4]
[366151661,1750089044261,-305.67079724,0.00019726,4]
[366151663,1750089044272,-460.0,0.00019726,4]
[366151665,1750089044282,-476.22737964,0.00019726,4]
[366151667,1750089044292,-460.0,0.00019726,4]
[366151669,1750089044302,-460.0,0.00019726,2]
[366151671,1750089044311,-335.88453678,0.00019726,4]
[366151673,1750089044321,-460.0,0.00019726,4]
[366151676,1750089044338,-460.0,0.00019726,4]
[366151677,1750089044348,-460.0,0.00019726,4]
[366151679,1750089044358,-460.0,0.00019726,4]
[366151681,1750089044368,-461.45320745,0.00019726,4]
[366151683,1750089044378,-460.0,0.00019726,4]
[366151685,1750089044387,-205.808834,0.00019726,4]
[366151687,1750089044398,-460.0,0.00019726,4]
[366151689,1750089044407,-460.0,0.00019726,4]
[366151691,1750089044417,-358.54375086,0.00019726,4]
[366151693,1750089044427,-460.0,0.00019726,4]
[366151695,1750089044437,-460.0,0.00019726,4]
[366151697,1750089044447,-460.0,0.00019726,4]
[366151699,1750089044457,-460.0,0.00019726,4]
[366151701,1750089044466,-460.0,0.00019726,4]
[366151703,1750089044477,-460.0,0.00019726,4]
[366151706,1750089044487,-433.42038116,0.00019726,4]
[366151708,1750089044496,-585.03025621,0.00019726,4]
[366151710,1750089044506,-272.76057755,0.00019726,4]
[366151712,1750089044516,-460.0,0.00019726,4]
[366151714,1750089044526,-460.0,0.00019726,4]
[366151716,1750089044536,-493.71184592,0.00019726,4]
[366151718,1750089044545,-460.0,0.00019726,4]
[366151720,1750089044555,-460.0,0.00019726,4]
[366151731,1750089044656,-460.0,0.00019726,4]
[366151733,1750089044667,-460.0,0.00019726,4]
[366151735,1750089044677,-460.0,0.00019726,4]
[366151737,1750089044687,-460.0,0.00019726,4]
[366151739,1750089044697,-460.0,0.00019726,4]
[366151741,1750089044708,-460.0,0.00019726,4]
[366151743,1750089044717,-460.0,0.00019726,4]
[366151745,1750089044729,-1881.63,0.00019726,4]
[366151747,1750089044739,-392.3810877,0.00019726,4]
[366151749,1750089044749,-460.0,0.00019726,4]
[366151751,1750089044759,-460.0,0.00019726,4]
[366151753,1750089044771,-460.0,0.00019726,4]
[366151755,1750089044781,-530.63,0.00019726,4]
[366151757,1750089044791,-460.0,0.00019726,4]
[366151759,1750089044802,-460.0,0.00019726,4]
[366151761,1750089044813,-460.0,0.00019726,4]
[366151763,1750089044823,-460.0,0.00019726,4]
[366151765,1750089044833,-525.3,0.00019726,4]
[366151767,1750089044842,-2532.74,0.00019726,4]
[366151769,1750089044852,-1369.72,0.00019726,4]
[366151771,1750089044862,-460.0,0.00019726,4]
[366151773,1750089044873,-460.0,0.00019726,4]
[366151775,1750089044883,-356.60074128,0.00019726,4]
[366151777,1750089044892,-1914.59,0.00019726,4]
[366151779,1750089044903,-460.0,0.00019726,4]
[366151781,1750089044912,-460.0,0.00019726,4]
[366151783,1750089044923,-903.02,0.00019726,4]
[366151785,1750089044933,-460.0,0.00019726,4]
[366151787,1750089044943,-460.0,0.00019726,4]
[366151790,1750089044953,-460.0,0.00019726,4]
[366151791,1750089044963,-460.0,0.00019726,4]
[366151793,1750089044973,-531.98,0.00019726,4]
[366151796,1750089044982,-901.41,0.00019726,4]
[366151797,1750089044992,-795.13,0.00019726,4]
[366151800,1750089045002,-460.0,0.00019726,4]
[366151802,1750089045012,-829.83,0.00019726,4]
[366151804,1750089045022,-460.0,0.00019726,4]
[366151806,1750089045032,-440.0,0.00019726,4]
[366151808,1750089045043,-460.0,0.00019726,4]
[366151810,1750089045053,-460.0,0.00019726,4]
[366151812,1750089045063,-460.0,0.00019726,4]
[366151814,1750089045073,-460.0,0.00019726,4]
[366151816,1750089045082,-460.0,0.00019726,4]
[366151818,1750089045092,-460.0,0.00019726,4]
[366151820,1750089045102,-460.0,0.00019726,4]
[366151822,1750089045112,-460.0,0.00019726,4]
[366151824,1750089045121,-1499.04,0.00019726,4]
[366151826,1750089045131,-460.0,0.00019726,4]
[366151828,1750089045141,-597.29,0.00019726,4]
[366151830,1750089045151,-460.0,0.00019726,4]
[366151832,1750089045160,-925.29,0.00019726,4]
[366151834,1750089045171,-460.0,0.00019726,4]
[366151836,1750089045181,-460.0,0.00019726,4]
[366151838,1750089045191,-460.0,0.00019726,4]
[366151840,1750089045202,-520.15,0.00019726,4]
[366151842,1750089045212,-460.0,0.00019726,4]
[366151844,1750089045223,-460.0,0.00019726,4]
[366151846,1750089045232,-460.0,0.00019726,4]
[366151848,1750089045243,-460.0,0.00019726,4]
[366151850,1750089045253,-460.0,0.00019726,4]
[366151853,1750089045264,-364.32344527,0.00019726,4]
[366151855,1750089045273,-460.0,0.00019726,4]
[366151857,1750089045283,-460.0,0.00019726,4]
[366151859,1750089045293,-460.0,0.00019726,4]
[366151861,1750089045303,-420.0,0.00019726,4]
[366151863,1750089045312,-410.0,0.00019726,4]
[366151865,1750089045321,-460.0,0.00019726,4]
[366151867,1750089045331,-460.0,0.00019726,4]
[366151869,1750089045341,-460.0,0.00019726,4]
[366151871,1750089045350,-3579.55,0.00019726,4]
[366151873,1750089045359,-460.0,0.00019726,4]
[366151875,1750089045370,-1086.54,0.00019726,4]
[366151877,1750089045380,-460.0,0.00019726,4]
[366151879,1750089045389,-460.0,0.00019726,4]
[366151881,1750089045399,-1778.22,0.00019726,4]
[366151883,1750089045409,-460.0,0.00019726,4]
[366151885,1750089045418,-460.0,0.00019726,4]
[366151887,1750089045428,-467.91144806,0.00019726,4]
[366151889,1750089045438,-1733.7,0.00019726,4]
[366151891,1750089045451,-460.0,0.00019726,4]
[366151894,1750089045469,-2444.59,0.00019726,4]
[366151896,1750089045488,-460.0,0.00019726,4]
[366151899,1750089045506,-460.0,0.00019726,4]
[366151902,1750089045522,-460.0,0.00019726,4]
[366151904,1750089045538,-460.0,0.00019726,4]
[366151907,1750089045556,-460.0,0.00019726,4]
[366151910,1750089045571,-460.0,0.00019726,4]
[366151912,1750089045589,-292.0,0.00019862,2]
[366151915,1750089045607,-1529.47743691,0.000199,2]
[366151918,1750089045622,-500.0,0.00019998,4]
[366151920,1750089045639,-1815.02933677,0.0002,2]
[366151923,1750089045653,-460.0,0.0002,4]
[366151925,1750089045669,-287.7642072,0.0002,4]
[366151928,1750089045684,-460.0,0.0002,4]
[366151930,1750089045697,-460.0,0.0002,4]
[366151933,1750089045710,-310.0,0.0002,4]
[366151935,1750089045727,-400.54111973,0.0002,4]
[366151938,1750089045744,-460.0,0.0002,4]
[366151941,1750089045759,-460.0,0.0002,4]
[366151943,1750089045776,-460.0,0.0002,4]
[366151946,1750089045793,-460.0,0.0002,4]
[366151949,1750089045811,-460.0,0.0002,4]
[366151951,1750089045825,-460.0,0.0002,4]
[366151953,1750089045837,-460.0,0.0002,4]
[366151956,1750089045850,-460.0,0.0002,4]
[366151959,1750089045868,-460.0,0.0002,4]
[366151961,1750089045886,-460.0,0.0002,4]
[366151963,1750089045897,-460.0,0.0002,4]
[366151966,1750089045911,-460.0,0.0002,4]
[366151969,1750089045927,-460.0,0.0002,4]
[366151971,1750089045942,-460.0,0.0002,4]
[366151973,1750089045954,-460.0,0.0002,2]
[366151976,1750089045968,-252.39,0.0002,4]
[366151978,1750089045982,-460.0,0.0002,4]
[366151980,1750089045995,-583.38012545,0.0002,4]
[366151983,1750089046008,-460.0,0.0002,4]
[366151985,1750089046022,-460.0,0.0002,4]
[366151988,1750089046034,-460.0,0.0002,4]
[366151990,1750089046048,-460.0,0.0002,4]
[366151992,1750089046061,-460.0,0.0002,4]
[366151996,1750089046074,-460.0,0.0002,4]
[366151998,1750089046087,-460.0,0.0002,4]
[366152001,1750089046101,-460.0,0.0002,4]
[366152003,1750089046114,-460.0,0.0002,4]
[366152005,1750089046129,-460.0,0.0002,4]
[366152008,1750089046142,-460.0,0.0002,4]
[366152010,1750089046156,-460.0,0.0002,4]
[366152013,1750089046170,-460.0,0.0002,4]
[366152015,1750089046184,-460.0,0.0002,4]
[366152018,1750089046198,-460.0,0.0002,4]
[366152020,1750089046212,-460.0,0.0002,4]
[366152023,1750089046226,-460.0,0.0002,4]
[366152025,1750089046240,-460.0,0.0002,4]
[366152028,1750089046254,-460.0,0.0002,4]
[366152030,1750089046268,-460.0,0.0002,4]
[366152032,1750089046282,-1881.63,0.0002,4]
[366152035,1750089046296,-460.0,0.0002,4]
[366152037,1750089046309,-171.79242548,0.0002,4]
[366152039,1750089046322,-460.0,0.0002,4]
[366152042,1750089046346,-530.63,0.0002,4]
[366152044,1750089046359,-460.0,0.0002,4]
[366152047,1750089046373,-460.0,0.0002,4]
[366152049,1750089046387,-460.0,0.0002,4]
[366152052,1750089046400,-460.0,0.0002,4]
[366152054,1750089046416,-525.3,0.0002,4]
[366152056,1750089046431,-2532.74,0.0002,4]
[366152059,1750089046447,-1369.72,0.0002,4]
[366152061,1750089046460,-460.0,0.0002,4]
[366152063,1750089046473,-460.0,0.0002,4]
[366152066,1750089046488,-1914.59,0.0002,4]
[366152068,1750089046502,-460.0,0.0002,4]
[366152071,1750089046516,-460.0,0.0002,4]
[366152073,1750089046530,-903.02,0.0002,4]
[366152075,1750089046539,-460.0,0.0002,4]
[366152077,1750089046549,-460.0,0.0002,4]
[366152079,1750089046559,-390.6517274,0.0002,4]
[366152081,1750089046569,-531.98,0.0002,4]
[366152083,1750089046579,-901.41,0.0002,4]
[366152085,1750089046589,-795.13,0.0002,4]
[366152087,1750089046598,-460.0,0.0002,4]
[366152108,1750089046795,-829.83,0.0002,4]
[366152110,1750089046806,-460.0,0.0002,4]
[366152112,1750089046817,-460.0,0.0002,4]
[366152114,1750089046827,-460.0,0.0002,4]
[366152116,1750089046837,-460.0,0.0002,4]
[366152118,1750089046847,-460.0,0.0002,4]
[366152120,1750089046857,-460.0,0.0002,4]
[366152122,1750089046866,-460.0,0.0002,4]
[366152124,1750089046876,-460.0,0.0002,4]
[366152127,1750089046886,-460.0,0.0002,4]
[366152128,1750089046895,-1499.04,0.0002,4]
[366152130,1750089046905,-460.0,0.0002,4]
[366152132,1750089046915,-597.29,0.0002,4]
[366152134,1750089046924,-393.02500775,0.0002,4]
[366152136,1750089046935,-925.29,0.0002,4]
[366152138,1750089046945,-460.0,0.0002,4]
[366152141,1750089046954,-460.0,0.0002,4]
[366152142,1750089046963,-170.51631516,0.0002,4]
[366152145,1750089046973,-520.15,0.0002,4]
[366152146,1750089046982,-460.0,0.0002,4]
[366152148,1750089046993,-410.01521592,0.0002,4]
[366152151,1750089047003,-460.0,0.0002,4]
[366152153,1750089047013,-460.0,0.0002,4]
[366152155,1750089047023,-460.0,0.0002,4]
[366152157,1750089047034,-460.0,0.0002,4]
[366152158,1750089047044,-460.0,0.0002,4]
[366152160,1750089047054,-460.0,0.0002,4]
[366152163,1750089047064,-460.0,0.0002,4]
[366152164,1750089047074,-316.91950005,0.0002,4]
[366152166,1750089047083,-460.0,0.0002,4]
[366152168,1750089047093,-3579.55,0.0002,4]
[366152171,1750089047103,-460.0,0.0002,4]
[366152173,1750089047113,-1086.54,0.0002,4]
[366152175,1750089047123,-460.0,0.0002,4]
[366152177,1750089047132,-460.0,0.0002,4]
[366152179,1750089047141,-1778.22,0.0002,4]
[366152180,1750089047150,-460.0,0.0002,4]
[366152182,1750089047160,-460.0,0.0002,4]
[366152184,1750089047169,-1733.7,0.0002,4]
[366152186,1750089047178,-433.84542994,0.0002,4]
[366152188,1750089047188,-2444.59,0.0002,4]
[366152191,1750089047197,-460.0,0.0002,4]
[366152193,1750089047207,-460.0,0.0002,4]
[366152195,1750089047216,-460.0,0.0002,4]
[366152197,1750089047226,-460.0,0.0002,4]
[366152199,1750089047235,-460.0,0.0002,4]
[366152201,1750089047244,-460.0,0.0002,4]
[366152203,1750089047254,-420.0,0.00020084,2]
[366152205,1750089047263,-420.0,0.00020086,2]
[366152207,1750089047273,-1428.76243158,0.000201,2]
[366152209,1750089047282,-1428.76243155,0.000201,2]
[366152211,1750089047292,-205.20717995,0.00020197,2]
[366152213,1750089047301,-1428.76243155,0.00020245,2]
[366152215,1750089047311,-1000.0,0.00020268,2]
[366152217,1750089047320,-1004.99209339,0.00020268,2]
[366152219,1750089047329,-1500.0,0.00020268,2]
[366152221,1750089047339,-160.0,0.00020272,2]
[366152223,1750089047348,-500.0,0.00020272,4]
[366152225,1750089047358,-460.0,0.00020273,4]
[366152227,1750089047367,-460.0,0.00020273,4]
[366152229,1750089047377,-460.0,0.00020273,4]
[366152231,1750089047387,-460.0,0.00020273,4]
[366152233,1750089047397,-460.0,0.00020273,4]
[366152235,1750089047407,-460.0,0.00020273,4]
[366152237,1750089047416,-460.0,0.00020273,4]
[366152239,1750089047426,-230.0,0.00020273,4]
[366152241,1750089047436,-355.5,0.00020273,4]
[366152243,1750089047445,-460.0,0.00020273,4]
[366152245,1750089047455,-460.0,0.00020273,4]
[366152247,1750089047465,-460.0,0.00020273,4]
[366152249,1750089047474,-460.0,0.00020273,4]
[366152251,1750089047483,-460.0,0.00020273,4]
[366152253,1750089047493,-460.0,0.00020273,4]
[366152255,1750089047505,-460.0,0.00020273,4]
[366152257,1750089047515,-460.0,0.00020273,2]
[366152259,1750089047525,-460.0,0.00020273,4]
[366152261,1750089047536,-460.0,0.00020273,4]
[366152263,1750089047548,-420.0,0.00020273,4]
[366152265,1750089047558,-448.84569346,0.00020273,4]
[366152267,1750089047567,-204.16,0.00020273,4]
[366152269,1750089047577,-460.0,0.00020273,4]
[366152271,1750089047587,-460.0,0.00020273,4]
[366152273,1750089047597,-460.0,0.00020273,4]
[366152275,1750089047606,-460.0,0.00020273,4]
[366152277,1750089047615,-460.0,0.00020273,4]
[366152279,1750089047625,-460.0,0.00020273,4]
[366152281,1750089047634,-460.0,0.00020273,4]
[366152283,1750089047644,-460.0,0.00020273,4]
[366152285,1750089047653,-460.0,0.00020273,4]
[366152287,1750089047663,-460.0,0.00020273,4]
[366152289,1750089047673,-460.0,0.00020273,4]
[366152291,1750089047683,-460.0,0.00020273,4]
[366152293,1750089047693,-460.0,0.00020273,4]
[366152295,1750089047703,-428.94225883,0.00020273,4]
[366152296,1750089047712,-460.0,0.00020273,4]
[366152297,1750089047723,-460.0,0.00020273,4]
[366152298,1750089047735,-1881.63,0.00020273,4]
[366152299,1750089047745,-460.0,0.00020273,4]
[366152300,1750089047755,-460.0,0.00020273,4]
[366152301,1750089047766,-530.63,0.00020273,4]
[366152302,1750089047776,-460.0,0.00020273,4]
[366152303,1750089047786,-460.0,0.00020273,4]
[366152304,1750089047796,-460.0,0.00020273,4]
[366152305,1750089047808,-460.0,0.00020273,4]
[366152306,1750089047818,-525.3,0.00020273,4]
[366152307,1750089047829,-2532.74,0.00020273,4]
[366152308,1750089047838,-1369.72,0.00020273,4]
[366152309,1750089047848,-460.0,0.00020273,4]
[366152310,1750089047858,-558.50385645,0.00020273,4]
[366152311,1750089047868,-1914.59,0.00020273,4]
[366152312,1750089047878,-460.0,0.00020273,4]
[366152313,1750089047888,-390.0,0.00020273,4]
[366152314,1750089047898,-903.02,0.00020273,4]
[366152315,1750089047907,-460.0,0.00020273,4]
[366152316,1750089047917,-460.0,0.00020273,4]
[366152317,1750089047928,-531.98,0.00020273,4]
[366152318,1750089047938,-901.41,0.00020273,4]
[366152320,1750089047948,-795.13,0.00020273,4]
[366152321,1750089047957,-460.0,0.00020273,4]
[366152322,1750089047967,-829.83,0.00020273,4]
[366152323,1750089047977,-460.0,0.00020273,4]
[366152324,1750089047987,-460.0,0.00020273,4]
[366152325,1750089047997,-460.0,0.00020273,4]
[366152326,1750089048007,-460.0,0.00020273,4]
[366152327,1750089048017,-460.0,0.00020273,4]
[366152328,1750089048027,-460.0,0.00020273,4]
[366152329,1750089048037,-460.0,0.00020273,4]
[366152330,1750089048047,-460.0,0.00020273,4]
[366152331,1750089048057,-460.0,0.00020273,4]
[366152332,1750089048067,-1499.04,0.00020273,4]
[366152333,1750089048077,-460.0,0.00020273,4]
[366152334,1750089048087,-597.29,0.00020273,4]
[366152335,1750089048097,-925.29,0.00020273,4]
[366152336,1750089048107,-460.0,0.00020273,4]
[366152337,1750089048117,-460.0,0.00020273,4]
[366152338,1750089048127,-520.15,0.00020273,4]
[366152339,1750089048138,-255.42575182,0.00020273,4]
[366152340,1750089048148,-460.0,0.00020273,4]
[366152341,1750089048158,-460.0,0.00020273,4]
[366152342,1750089048168,-460.0,0.00020273,4]
[366152343,1750089048179,-436.46246881,0.00020273,4]
[366152344,1750089048191,-460.0,0.00020273,4]
[366152345,1750089048202,-460.0,0.00020273,4]
[366152346,1750089048213,-460.0,0.00020273,4]
[366152347,1750089048223,-460.0,0.00020273,4]
[366152348,1750089048233,-3579.55,0.00020273,4]
[366152349,1750089048244,-460.0,0.00020273,4]